[Event "RUS-chT Higher League 2021"]
[Site "Sochi"]
[Date "2021.05.01"]
[Round "1.2"]
[White "Alikhanov, Felix"]
[Black "Drygalov, Andrey"]
[Result "0-1"]
[ECO "B90"]
[WhiteElo "2449"]
[BlackElo "2500"]
[Annotator "ChessBase"]
[PlyCount "68"]
[EventDate "2021.05.01"]
[EventType "team-tourn"]
[EventCountry "RUS"]
[SourceTitle "playchess.com"]
[Source "ChessBase"]
[SourceQuality "1"]
[TimeControl "40/5400+30:1800+30"]

1. e4 c5 2. Nf3 d6 {[%emt 0:00:00]} 3. Nc3 {[%emt 0:01:50]} Nf6 {[%emt 0:00:00]} 4. d4 {[%emt 0:00:25]} cxd4 {[%emt 0:00:00]} 5. Nxd4 {[%emt 0:00:21]} a6 {[%emt 0:00:00]} 6. Bc4 {[%emt 0:01:45]} e6 {[%emt 0:00:07]} 7. Bb3 {[%emt 0:00:11]} Nbd7 {[%emt 0:00:05]} 8. Bg5 {[%emt 0:04:01]} Nc5 {[%emt 0:01:01]} 9. Qe2 {[%emt 0:06:09]} Be7 {[%emt 0:01:41]} 10. f4 {[%emt 0:01:03]} h6 {[%emt 0:17:27]} 11. Bxf6 {[%emt 0:03:24]} Bxf6 {[%emt 0:00:05]} 12. O-O-O {[%emt 0:04:32]} Qc7 {[%emt 0:00:43]} 13. Kb1 {[%emt 0:01:54]} Bd7 {[%emt 0:04:11]} 14. Rhe1 {[%emt 0:14:23]} O-O {[%emt 0:14:11]} 15. g4 {[%emt 0:20:33]} b5 {[%emt 0:04:54]} 16. e5 {[%emt 0:15:52]} dxe5 {[%emt 0:02:59]} 17. fxe5 {[%emt 0:00:28]} Bh4 {[%emt 0:06:37]} 18. Rg1 {[%emt 0:03:33]} b4 {[%emt 0:02:41]} 19. Nf3 {[%emt 0:06:48]} Be7 {[%emt 0:09:08]} 20. Ne4 {[%emt 0:00:50]} Nxe4 {[%emt 0:01:42]} 21. Qxe4 {[%emt 0:00:08]} Bc6 {[%emt 0:00:03]} 22. Qc4 {[%emt 0:04:22]} Qb7 {[%emt 0:00:44]} 23. Nd4 {[%emt 0:01:12]} Bd5 {[%emt 0:06:01]} 24. Qe2 {[%emt 0:00:12]} Rfd8 {[%emt 0:00:39]} 25. Bxd5 {[%emt 0:01:43]} Rxd5 {[%emt 0:00:00]} 26. Rd3 {[%emt 0:01:38]} Qc7 {[%emt 0:09:53]} 27. Nf3 {[%emt 0:01:45]} Rxd3 {[%emt 0:00:36]} 28. Qxd3 {[%emt 0:00:27]} a5 {[%emt 0:00:18]} 29. h4 {[%emt 0:01:01]} Rd8 {[%emt 0:01:12]} 30. Qe2 {[%emt 0:00:25]} Qc5 {[%emt 0:01:52]} 31. g5 {[%emt 0:00:59]} hxg5 {[%emt 0:00:19]} 32. hxg5 {[%emt 0:00:05]} Bxg5 {[%emt 0:07:21]} 33. Rxg5 {[%emt 0:00:15]} Qf2 {[%emt 0:00:19]} 34. Ng1 {[%emt 0:00:03]} Rd2 {[%emt 0:00:31]} 0-1

[Event "RUS-chT Higher League 2021"]
[Site "Sochi"]
[Date "2021.05.01"]
[Round "1.3"]
[White "Gutenev, Alexander"]
[Black "Mutovin, Egor"]
[Result "1-0"]
[ECO "B90"]
[WhiteElo "2431"]
[BlackElo "1904"]
[Annotator "NA"]
[PlyCount "103"]
[EventDate "2021.05.01"]
[EventType "team-tourn"]
[EventCountry "RUS"]
[SourceTitle "playchess.com"]
[Source "ChessBase"]
[SourceQuality "1"]
[TimeControl "40/5400+30:1800+30"]

1. e4 c5 2. Nf3 d6 3. d4 {[%emt 0:00:00]} cxd4 {[%emt 0:00:28]} 4. Nxd4 {[%emt 0:00:00]} Nf6 {[%emt 0:00:54]} 5. Nc3 {[%emt 0:00:03]} a6 {[%emt 0:00:56]} 6. h3 {[%emt 0:00:36]} e5 {[%emt 0:01:23]} 7. Nb3 {[%emt 0:00:07]} Be6 {[%emt 0:00:13]} 8. f4 {[%emt 0:00:07]} Nc6 {[%emt 0:00:42]} 9. f5 {[%emt 0:04:14]} Bxb3 {[%emt 0:01:40]} 10. axb3 {[%emt 0:00:58]} d5 {[%emt 0:01:07]} 11. exd5 {[%emt 0:00:30]} Nd4 {[%emt 0:00:07]} 12. Qd3 {[%emt 0:08:22]} Bb4 {[%emt 0:18:34]} 13. Bd2 {[%emt 0:01:41]} O-O {[%emt 0:01:56]} 14. O-O-O {[%emt 0:02:10]} Nxd5 {[%emt 0:07:48]} 15. Kb1 {[%emt 0:03:18]} Bxc3 {[%emt 0:13:07]} 16. bxc3 {[%emt 0:16:55]} Nb5 {[%emt 0:02:06]} 17. Kb2 {[%emt 0:03:24]} e4 {[%emt 0:02:08]} 18. Qxe4 {[%emt 0:07:02]} Ndxc3 {[%emt 0:05:36]} 19. Bxc3 {[%emt 0:00:11]} Nxc3 {[%emt 0:09:16]} 20. Rxd8 {[%emt 0:00:12]} Nxe4 {[%emt 0:00:05]} 21. Rxa8 {[%emt 0:01:00]} Rxa8 {[%emt 0:00:04]} 22. Bc4 {[%emt 0:00:17]} Nd6 {[%emt 0:03:30]} 23. Bd5 {[%emt 0:03:23]} Rd8 {[%emt 0:04:55]} 24. g4 {[%emt 0:06:11]} Kf8 {[%emt 0:01:06]} 25. c4 {[%emt 0:01:34]} b6 {[%emt 0:02:32]} 26. b4 {[%emt 0:08:48]} b5 {[%emt 0:08:23]} 27. c5 {[%emt 0:03:24]} Ne8 {[%emt 0:05:44]} 28. Bb7 {[%emt 0:01:51]} Nc7 {[%emt 0:00:25]} 29. Re1 {[%emt 0:07:50]} h6 {[%emt 0:02:00]} 30. Kc3 {[%emt 0:00:18]} Rb8 {[%emt 0:01:41]} 31. Bc6 {[%emt 0:01:04]} Rd8 {[%emt 0:02:27]} 32. Re2 {[%emt 0:01:37]} Rd1 {[%emt 0:02:36]} 33. h4 {[%emt 0:04:14]} f6 {[%emt 0:01:06]} 34. Bb7 {[%emt 0:07:54]} Rd8 {[%emt 0:00:21]} 35. Ra2 {[%emt 0:01:24]} Rb8 {[%emt 0:00:30]} 36. Bf3 {[%emt 0:00:30]} Re8 {[%emt 0:00:30]} 37. Kd4 {[%emt 0:00:30]} Rd8+ {[%emt 0:00:30]} 38. Kc3 {[%emt 0:00:30]} Re8 {[%emt 0:00:30]} 39. Rd2 {[%emt 0:00:30]} Re3+ {[%emt 0:00:30]} 40. Rd3 {[%emt 0:00:30]} Rxd3+ {[%emt 0:00:00]} 41. Kxd3 {[%emt 0:00:18]} Ke7 {[%emt 0:05:40]} 42. Bb7 {[%emt 0:00:10]} Kd7 {[%emt 0:00:11]} 43. Ke4 {[%emt 0:00:13]} Ke7 {[%emt 0:00:07]} 44. Kf4 {[%emt 0:00:16]} Kf8 {[%emt 0:06:05]} 45. g5 {[%emt 0:00:15]} Kf7 {[%emt 0:00:10]} 46. Kg4 {[%emt 0:02:47]} hxg5 {[%emt 0:03:28]} 47. hxg5 {[%emt 0:00:09]} g6 {[%emt 0:00:12]} 48. fxg6+ {[%emt 0:00:16]} Kxg6 {[%emt 0:00:05]} 49. Be4+ {[%emt 0:00:22]} Kg7 {[%emt 0:00:21]} 50. g6 {[%emt 0:00:15]} Kh6 {[%emt 0:00:15]} 51. Kf5 {[%emt 0:00:20]} Kg7 {[%emt 0:00:22]} 52. Bb7 {[%emt 0:00:44]} 1-0

[Event "RUS-chT Higher League 2021"]
[Site "Sochi"]
[Date "2021.05.01"]
[Round "1.4"]
[White "Ibraev, Rustam"]
[Black "Radzhabov, Rodion"]
[Result "1/2-1/2"]
[ECO "B31"]
[WhiteElo "2243"]
[BlackElo "2352"]
[Annotator "NA"]
[PlyCount "78"]
[EventDate "2021.05.01"]
[EventType "team-tourn"]
[EventCountry "RUS"]
[SourceTitle "playchess.com"]
[Source "ChessBase"]
[SourceQuality "1"]
[TimeControl "40/5400+30:1800+30"]

1. e4 c5 2. Nf3 Nc6 3. Bb5 {[%emt 0:00:38]} g6 {[%emt 0:00:08]} 4. O-O {[%emt 0:01:00]} Bg7 {[%emt 0:00:06]} 5. Bxc6 {[%emt 0:04:04]} bxc6 {[%emt 0:00:52]} 6. Re1 {[%emt 0:00:28]} Nh6 {[%emt 0:00:50]} 7. d3 {[%emt 0:02:38]} O-O {[%emt 0:03:16]} 8. h3 {[%emt 0:02:59]} d6 {[%emt 0:01:46]} 9. e5 {[%emt 0:05:14]} Rb8 {[%emt 0:16:42]} 10. Nbd2 {[%emt 0:07:50]} f6 {[%emt 0:05:22]} 11. exd6 {[%emt 0:03:32]} exd6 {[%emt 0:00:07]} 12. Nc4 {[%emt 0:08:41]} Nf7 {[%emt 0:03:55]} 13. Bf4 {[%emt 0:05:18]} Ne5 {[%emt 0:05:33]} 14. b3 {[%emt 0:04:22]} Be6 {[%emt 0:13:42]} 15. Rb1 {[%emt 0:06:38]} Qd7 {[%emt 0:02:38]} 16. Bg3 {[%emt 0:04:01]} Rbe8 {[%emt 0:08:28]} 17. Nfd2 {[%emt 0:11:27]} Nxc4 {[%emt 0:29:48]} 18. Nxc4 {[%emt 0:02:58]} d5 {[%emt 0:02:18]} 19. Nd2 {[%emt 0:01:23]} Bf7 {[%emt 0:01:04]} 20. Nf3 {[%emt 0:06:01]} Rxe1+ {[%emt 0:01:17]} 21. Qxe1 {[%emt 0:00:33]} c4 {[%emt 0:00:12]} 22. d4 {[%emt 0:04:22]} Re8 {[%emt 0:00:54]} 23. Qd2 {[%emt 0:01:22]} cxb3 {[%emt 0:01:04]} 24. Rxb3 {[%emt 0:05:42]} Bf8 {[%emt 0:00:56]} 25. Bf4 {[%emt 0:05:06]} g5 {[%emt 0:00:57]} 26. Be3 {[%emt 0:01:27]} Bg6 {[%emt 0:00:29]} 27. Ne1 {[%emt 0:00:33]} g4 {[%emt 0:00:27]} 28. hxg4 {[%emt 0:01:18]} Qxg4 {[%emt 0:00:10]} 29. f3 {[%emt 0:00:14]} Qe6 {[%emt 0:00:33]} 30. Kf2 {[%emt 0:00:20]} Bd6 {[%emt 0:00:41]} 31. Nd3 {[%emt 0:00:28]} Qf5 {[%emt 0:00:24]} 32. Bf4 {[%emt 0:00:41]} Bf8 {[%emt 0:00:40]} 33. Rb7 {[%emt 0:01:10]} Re7 {[%emt 0:00:24]} 34. g4 {[%emt 0:00:42]} Qe6 {[%emt 0:00:39]} 35. Nc5 {[%emt 0:00:26]} Qf7 {[%emt 0:00:05]} 36. Rb8 {[%emt 0:00:32]} Re8 {[%emt 0:00:19]} 37. Rb7 {[%emt 0:00:28]} Re7 {[%emt 0:00:02]} 38. Rb8 {[%emt 0:00:07]} Re8 {[%emt 0:00:03]} 39. Rb7 {[%emt 0:00:04]} Re7 1/2-1/2

[Event "RUS-chT Higher League 2021"]
[Site "Sochi"]
[Date "2021.05.01"]
[Round "1.7"]
[White "Ter-Saakian, Grigorii"]
[Black "Garifullina, Leya"]
[Result "0-1"]
[ECO "A45"]
[WhiteElo "2238"]
[BlackElo "2386"]
[Annotator "NA"]
[PlyCount "82"]
[EventDate "2021.05.01"]
[EventType "team-tourn"]
[EventCountry "RUS"]
[SourceTitle "playchess.com"]
[Source "ChessBase"]
[SourceQuality "1"]
[TimeControl "40/5400+30:1800+30"]

1. d4 Nf6 2. Nc3 d5 3. Bf4 c5 4. e3 {[%emt 0:00:20]} cxd4 {[%emt 0:00:21]} 5. exd4 {[%emt 0:00:06]} a6 {[%emt 0:00:07]} 6. Bd3 {[%emt 0:00:52]} Nc6 {[%emt 0:00:13]} 7. Nge2 {[%emt 0:00:01]} Bg4 {[%emt 0:00:14]} 8. f3 {[%emt 0:00:15]} Bh5 {[%emt 0:00:09]} 9. a3 {[%emt 0:00:19]} Bg6 {[%emt 0:02:25]} 10. Bxg6 {[%emt 0:03:40]} hxg6 {[%emt 0:01:53]} 11. Qd3 {[%emt 0:00:36]} e6 {[%emt 0:00:15]} 12. g3 {[%emt 0:15:43]} Rc8 {[%emt 0:02:57]} 13. b4 {[%emt 0:02:26]} Nh5 {[%emt 0:05:43]} 14. Bd2 {[%emt 0:02:03]} Bd6 {[%emt 0:03:54]} 15. Kf2 {[%emt 0:01:01]} Nf6 {[%emt 0:06:21]} 16. Kg2 {[%emt 0:01:57]} Ne7 {[%emt 0:07:16]} 17. Na4 {[%emt 0:05:01]} Qc7 {[%emt 0:01:54]} 18. Rac1 {[%emt 0:00:53]} Qc4 {[%emt 0:05:07]} 19. Nc5 {[%emt 0:03:53]} Qxd3 {[%emt 0:00:51]} 20. cxd3 {[%emt 0:00:02]} Rb8 {[%emt 0:01:38]} 21. Rc2 {[%emt 0:00:17]} O-O {[%emt 0:02:43]} 22. Rhc1 {[%emt 0:00:39]} Rfc8 {[%emt 0:00:54]} 23. Bg5 {[%emt 0:00:24]} Rc7 {[%emt 0:02:43]} 24. Rc3 {[%emt 0:00:41]} Ra8 25. Kf2 {[%emt 0:01:15]} b6 {[%emt 0:08:17]} 26. Na4 {[%emt 0:00:41]} Rb7 {[%emt 0:02:09]} 27. Bf4 {[%emt 0:00:09]} Bxf4 {[%emt 0:00:32]} 28. Nxf4 {[%emt 0:00:00]} Nf5 {[%emt 0:01:19]} 29. Rc8+ {[%emt 0:06:05]} Rxc8 {[%emt 0:00:04]} 30. Rxc8+ {[%emt 0:00:10]} Kh7 {[%emt 0:00:02]} 31. Ra8 {[%emt 0:01:25]} Nxd4 {[%emt 0:00:56]} 32. Rxa6 {[%emt 0:02:38]} Nd7 {[%emt 0:05:28]} 33. Nc3 {[%emt 0:02:03]} Ne5 {[%emt 0:02:00]} 34. Ke3 {[%emt 0:02:00]} Nf5+ {[%emt 0:02:06]} 35. Kf2 {[%emt 0:00:16]} g5 {[%emt 0:01:59]} 36. Nfe2 {[%emt 0:01:32]} Nxd3+ {[%emt 0:00:08]} 37. Kf1 {[%emt 0:00:04]} Ne3+ {[%emt 0:01:55]} 38. Kg1 {[%emt 0:00:07]} e5 {[%emt 0:00:40]} 39. h4 {[%emt 0:00:13]} gxh4 {[%emt 0:00:14]} 40. gxh4 {[%emt 0:00:00]} f5 {[%emt 0:00:00]} 41. Ra8 {[%emt 0:00:40]} Rc7 {[%emt 0:01:17]} 0-1

[Event "RUS-chT Higher League 2021"]
[Site "Sochi"]
[Date "2021.05.01"]
[Round "1.8"]
[White "Pingin, Artem"]
[Black "Veselov, Yaroslav"]
[Result "1-0"]
[ECO "B48"]
[WhiteElo "2347"]
[BlackElo "1893"]
[Annotator "NA"]
[PlyCount "65"]
[EventDate "2021.05.01"]
[EventType "team-tourn"]
[EventCountry "RUS"]
[SourceTitle "playchess.com"]
[Source "ChessBase"]
[SourceQuality "1"]
[TimeControl "40/5400+30:1800+30"]

1. e4 c5 2. Nf3 e6 3. d4 cxd4 4. Nxd4 Nc6 5. Nc3 {[%emt 0:00:00]} Qc7 {[%emt 0:00:00]} 6. Be3 {[%emt 0:00:04]} a6 {[%emt 0:00:00]} 7. Qd2 {[%emt 0:00:35]} Nf6 {[%emt 0:00:00]} 8. a3 {[%emt 0:08:18]} b5 {[%emt 0:01:48]} 9. Nxc6 {[%emt 0:04:32]} dxc6 {[%emt 0:01:06]} 10. f3 {[%emt 0:02:29]} Be7 {[%emt 0:02:39]} 11. Qf2 {[%emt 0:06:04]} e5 {[%emt 0:04:48]} 12. g4 {[%emt 0:07:08]} Be6 {[%emt 0:01:57]} 13. h4 {[%emt 0:01:48]} O-O {[%emt 0:15:05]} 14. Bh3 {[%emt 0:01:19]} a5 {[%emt 0:01:28]} 15. Ne2 {[%emt 0:03:32]} c5 {[%emt 0:05:05]} 16. Ng3 {[%emt 0:10:27]} Rfc8 {[%emt 0:09:59]} 17. g5 {[%emt 0:02:59]} Ne8 {[%emt 0:01:16]} 18. Nf5 {[%emt 0:01:56]} Nd6 {[%emt 0:12:42]} 19. h5 {[%emt 0:02:14]} Bxf5 {[%emt 0:04:31]} 20. exf5 {[%emt 0:01:06]} f6 {[%emt 0:00:05]} 21. h6 {[%emt 0:05:25]} fxg5 {[%emt 0:02:16]} 22. f6 {[%emt 0:00:43]} gxf6 {[%emt 0:09:16]} 23. O-O-O {[%emt 0:04:54]} Rd8 {[%emt 0:03:28]} 24. Be6+ {[%emt 0:11:39]} Kh8 {[%emt 0:03:02]} 25. Qe2 {[%emt 0:00:24]} Rab8 {[%emt 0:04:05]} 26. Bxg5 {[%emt 0:01:27]} Nc4 {[%emt 0:01:06]} 27. Bh4 {[%emt 0:01:36]} e4 {[%emt 0:00:52]} 28. Qxe4 {[%emt 0:04:57]} Qe5 {[%emt 0:00:36]} 29. Bxc4 {[%emt 0:01:00]} Qxe4 {[%emt 0:00:05]} 30. fxe4 {[%emt 0:00:05]} bxc4 {[%emt 0:00:05]} 31. e5 {[%emt 0:00:44]} Rf8 {[%emt 0:03:46]} 32. Rd7 {[%emt 0:00:37]} Rbe8 {[%emt 0:01:29]} 33. Rg1 {[%emt 0:01:23]} 1-0

[Event "RUS-chT Higher League 2021"]
[Site "Sochi"]
[Date "2021.05.01"]
[Round "1.9"]
[White "Sveshnikov, Evgeny"]
[Black "Skvortsov, Andrei"]
[Result "0-1"]
[ECO "C28"]
[WhiteElo "2478"]
[BlackElo "2108"]
[Annotator "ChessBase"]
[PlyCount "112"]
[EventDate "2021.05.01"]
[EventType "team-tourn"]
[EventCountry "RUS"]
[SourceTitle "playchess.com"]
[Source "ChessBase"]
[SourceQuality "1"]
[TimeControl "40/5400+30:1800+30"]

1. e4 {[%emt 0:00:00]} e5 {[%emt 0:00:00]} 2. Nc3 {[%emt 0:00:00]} Nc6 {[%emt 0:00:36]} 3. Bc4 {[%emt 0:00:00]} Nf6 {[%emt 0:00:52]} 4. d3 {[%emt 0:00:08]} Na5 {[%emt 0:01:26]} 5. Nf3 {[%emt 0:04:02]} Nxc4 {[%emt 0:04:40]} 6. dxc4 {[%emt 0:00:02]} Bb4 {[%emt 0:01:32]} 7. Bd2 {[%emt 0:00:14]} Bxc3 {[%emt 0:08:18]} 8. Bxc3 {[%emt 0:00:03]} d6 {[%emt 0:00:04]} 9. Qd3 {[%emt 0:04:25]} Qe7 {[%emt 0:15:00]} 10. O-O {[%emt 0:12:48]} b6 {[%emt 0:05:34]} 11. Rfe1 {[%emt 0:03:22]} a5 {[%emt 0:01:20]} 12. Nd2 {[%emt 0:04:24]} g5 {[%emt 0:06:04]} 13. Nf1 {[%emt 0:03:09]} Be6 {[%emt 0:07:39]} 14. Ne3 {[%emt 0:01:21]} Nd7 {[%emt 0:02:29]} 15. Qe2 {[%emt 0:08:43]} h5 {[%emt 0:02:08]} 16. b3 {[%emt 0:06:36]} Nf6 {[%emt 0:10:10]} 17. Qd3 {[%emt 0:05:21]} g4 {[%emt 0:05:11]} 18. Nd5 {[%emt 0:01:26]} Nxd5 {[%emt 0:03:17]} 19. cxd5 {[%emt 0:01:09]} Bd7 {[%emt 0:01:15]} 20. f4 {[%emt 0:00:16]} gxf3 {[%emt 0:00:53]} 21. Qxf3 {[%emt 0:00:02]} O-O-O {[%emt 0:01:08]} 22. Rf1 {[%emt 0:01:32]} Rdf8 {[%emt 0:02:50]} 23. Qd3 {[%emt 0:01:38]} Kb7 {[%emt 0:00:43]} 24. Rf2 {[%emt 0:02:16]} Rh7 {[%emt 0:01:14]} 25. a4 {[%emt 0:09:53]} f5 {[%emt 0:09:05]} 26. exf5 {[%emt 0:00:10]} e4 {[%emt 0:00:27]} 27. Qc4 {[%emt 0:06:21]} e3 {[%emt 0:01:40]} 28. Rf3 {[%emt 0:00:01]} Rxf5 {[%emt 0:00:54]} 29. Rxf5 {[%emt 0:00:14]} Bxf5 {[%emt 0:00:06]} 30. b4 {[%emt 0:00:08]} Qe4 {[%emt 0:03:39]} 31. Qxe4 {[%emt 0:01:33]} Bxe4 {[%emt 0:00:05]} 32. bxa5 {[%emt 0:00:21]} Bxc2 {[%emt 0:00:45]} 33. axb6 {[%emt 0:00:32]} cxb6 {[%emt 0:01:11]} 34. Re1 {[%emt 0:01:54]} Re7 {[%emt 0:00:22]} 35. Bb4 {[%emt 0:00:02]} Re4 {[%emt 0:01:43]} 36. Bxd6 {[%emt 0:00:09]} Bb3 {[%emt 0:00:39]} 37. g3 {[%emt 0:08:05]} Bxd5 {[%emt 0:00:25]} 38. Bf4 {[%emt 0:00:02]} e2 {[%emt 0:00:22]} 39. Kf2 {[%emt 0:00:55]} Bc4 {[%emt 0:00:25]} 40. Bd2 {[%emt 0:00:00]} Rd4 {[%emt 0:00:00]} 41. Ke3 {[%emt 0:01:40]} Rd6 {[%emt 0:09:36]} 42. Rc1 {[%emt 0:08:50]} Re6+ {[%emt 0:01:33]} 43. Kf2 {[%emt 0:04:53]} Bb3 {[%emt 0:01:56]} 44. a5 {[%emt 0:03:48]} b5 {[%emt 0:03:19]} 45. Rc5 {[%emt 0:00:36]} Bc4 {[%emt 0:00:18]} 46. Be1 {[%emt 0:00:12]} Rf6+ {[%emt 0:01:23]} 47. Ke3 {[%emt 0:00:06]} Rf1 {[%emt 0:04:17]} 48. Kd2 {[%emt 0:00:02]} Rf3 {[%emt 0:00:22]} 49. Kc2 {[%emt 0:04:17]} Rf1 {[%emt 0:01:17]} 50. Kd2 {[%emt 0:00:06]} Rf3 {[%emt 0:00:05]} 51. Kc2 {[%emt 0:00:08]} Rd3 {[%emt 0:04:21]} 52. Rxh5 {[%emt 0:04:32]} Rd1 {[%emt 0:00:10]} 53. Rh7+ {[%emt 0:00:11]} Kc6 {[%emt 0:02:57]} 54. Rh6+ {[%emt 0:00:07]} Kd5 {[%emt 0:01:35]} 55. Bd2 {[%emt 0:03:00]} Bd3+ {[%emt 0:01:49]} 56. Kc3 {[%emt 0:00:11]} b4+ {[%emt 0:00:09]} 0-1

[Event "RUS-chT Higher League 2021"]
[Site "Sochi"]
[Date "2021.05.01"]
[Round "1.10"]
[White "Chibukhchyan, Erik"]
[Black "Rashkovsky, Nukhim N"]
[Result "0-1"]
[ECO "E11"]
[WhiteElo "2205"]
[BlackElo "2446"]
[Annotator "NA"]
[PlyCount "79"]
[EventDate "2021.05.01"]
[EventType "team-tourn"]
[EventCountry "RUS"]
[SourceTitle "playchess.com"]
[Source "ChessBase"]
[SourceQuality "1"]
[TimeControl "40/5400+30:1800+30"]

1. d4 Nf6 2. c4 e6 3. Nf3 Bb4+ 4. Nbd2 {[%emt 0:00:09]} d6 {[%emt 0:01:28]} 5. a3 {[%emt 0:00:37]} Bxd2+ {[%emt 0:00:06]} 6. Qxd2 {[%emt 0:00:04]} b6 {[%emt 0:02:11]} 7. g3 {[%emt 0:00:31]} Bb7 8. Bg2 {[%emt 0:00:02]} O-O {[%emt 0:04:04]} 9. O-O {[%emt 0:00:47]} a5 {[%emt 0:01:27]} 10. b3 {[%emt 0:00:05]} Nbd7 {[%emt 0:00:20]} 11. Bb2 {[%emt 0:00:08]} Ne4 {[%emt 0:06:17]} 12. Qc2 {[%emt 0:01:59]} f5 {[%emt 0:06:21]} 13. Ne1 {[%emt 0:01:59]} c5 {[%emt 0:02:36]} 14. Nd3 {[%emt 0:03:24]} cxd4 {[%emt 0:01:54]} 15. Bxd4 {[%emt 0:00:40]} e5 {[%emt 0:00:18]} 16. Bb2 {[%emt 0:00:48]} Rc8 {[%emt 0:00:33]} 17. f3 {[%emt 0:07:38]} Nef6 {[%emt 0:01:24]} 18. Nf2 {[%emt 0:10:39]} g6 {[%emt 0:03:10]} 19. Qd2 {[%emt 0:03:33]} Qe7 {[%emt 0:09:40]} 20. Rad1 {[%emt 0:16:42]} Ne8 {[%emt 0:13:56]} 21. Rc1 {[%emt 0:23:20]} Nc5 {[%emt 0:00:43]} 22. Qc2 {[%emt 0:00:56]} a4 {[%emt 0:00:37]} 23. bxa4 {[%emt 0:00:09]} Qd7 {[%emt 0:03:05]} 24. Nd3 {[%emt 0:13:44]} Qxa4 {[%emt 0:02:26]} 25. Nxc5 {[%emt 0:05:09]} Qxc2 {[%emt 0:00:02]} 26. Rxc2 {[%emt 0:00:05]} Rxc5 {[%emt 0:00:42]} 27. Bc1 {[%emt 0:01:29]} Ba6 {[%emt 0:07:03]} 28. f4 {[%emt 0:07:50]} e4 {[%emt 0:00:09]} 29. Be3 {[%emt 0:00:54]} Rxc4 {[%emt 0:00:06]} 30. Rd2 {[%emt 0:00:10]} b5 {[%emt 0:02:15]} 31. Kf2 {[%emt 0:01:07]} Rf7 {[%emt 0:00:42]} 32. Ra1 {[%emt 0:00:44]} Rfc7 {[%emt 0:03:03]} 33. Raa2 {[%emt 0:00:32]} Kf7 {[%emt 0:00:57]} 34. h3 {[%emt 0:00:01]} Ke6 {[%emt 0:00:23]} 35. g4 {[%emt 0:01:01]} Nf6 {[%emt 0:00:17]} 36. Bd4 {[%emt 0:00:28]} R7c6 {[%emt 0:10:49]} 37. e3 {[%emt 0:00:32]} fxg4 {[%emt 0:03:07]} 38. hxg4 {[%emt 0:00:26]} Nxg4+ {[%emt 0:00:17]} 39. Kg3 {[%emt 0:00:00]} Nf6 {[%emt 0:00:00]} 40. Bf1 {[%emt 0:00:00]} 0-1

[Event "RUS-chT Higher League 2021"]
[Site "Sochi"]
[Date "2021.05.01"]
[Round "1.11"]
[White "Kalegin, Evgenij"]
[Black "Galchenko, Vadim"]
[Result "1-0"]
[ECO "C11"]
[WhiteElo "2414"]
[BlackElo "2121"]
[Annotator "NA"]
[PlyCount "67"]
[EventDate "2021.05.01"]
[EventType "team-tourn"]
[EventCountry "RUS"]
[SourceTitle "playchess.com"]
[Source "ChessBase"]
[SourceQuality "1"]
[TimeControl "40/5400+30:1800+30"]

1. e4 e6 2. d4 d5 3. Nc3 Nf6 4. e5 Nfd7 5. f4 c5 6. Nf3 {[%emt 0:00:02]} Nc6 {[%emt 0:00:17]} 7. Be3 {[%emt 0:00:09]} h6 {[%emt 0:00:48]} 8. Qd2 {[%emt 0:01:11]} g5 {[%emt 0:00:12]} 9. dxc5 {[%emt 0:01:36]} gxf4 {[%emt 0:00:19]} 10. Bxf4 {[%emt 0:00:22]} Nxc5 {[%emt 0:00:09]} 11. a3 {[%emt 0:11:08]} a6 {[%emt 0:18:10]} 12. Bd3 {[%emt 0:10:02]} b5 {[%emt 0:12:29]} 13. O-O {[%emt 0:02:32]} Bb7 {[%emt 0:11:27]} 14. b4 {[%emt 0:08:30]} Nd7 {[%emt 0:11:09]} 15. Qf2 {[%emt 0:09:29]} Qb6 {[%emt 0:07:24]} 16. Be3 {[%emt 0:10:32]} Qc7 {[%emt 0:01:17]} 17. Rae1 {[%emt 0:07:14]} Ncxe5 {[%emt 0:20:47]} 18. Nxe5 {[%emt 0:00:30]} Nxe5 {[%emt 0:00:09]} 19. Bd4 {[%emt 0:19:31]} Nxd3 {[%emt 0:04:18]} 20. cxd3 {[%emt 0:00:09]} Rg8 {[%emt 0:01:22]} 21. Re3 {[%emt 0:05:04]} Bd6 {[%emt 0:05:29]} 22. Qh4 {[%emt 0:02:28]} Rg6 {[%emt 0:01:49]} 23. Ne2 {[%emt 0:03:49]} a5 {[%emt 0:02:43]} 24. Nf4 {[%emt 0:01:40]} Bxf4 {[%emt 0:00:16]} 25. Rxf4 {[%emt 0:01:08]} axb4 {[%emt 0:00:41]} 26. axb4 {[%emt 0:00:35]} Ra2 {[%emt 0:00:39]} 27. Rg3 {[%emt 0:01:21]} Qe7 {[%emt 0:00:49]} 28. Rxg6 {[%emt 0:02:13]} fxg6 {[%emt 0:00:02]} 29. Qg4 {[%emt 0:01:05]} g5 {[%emt 0:00:59]} 30. Qh5+ {[%emt 0:00:11]} Kd8 {[%emt 0:00:09]} 31. Bf6 {[%emt 0:00:45]} gxf4 {[%emt 0:00:16]} 32. Qxh6 {[%emt 0:00:19]} Ra1+ {[%emt 0:00:38]} 33. Kf2 {[%emt 0:00:07]} Ra2+ {[%emt 0:00:10]} 34. Ke1 {[%emt 0:00:19]} 1-0